Cogmind - Beta 16.1 @@@ ROGUE MODE // 2026.03.02 @ 18:17:31 Player: the Result: Destroyed by H5-R4E(R) with Subdweller Machine Gun Performance ------------- Evolutions (0) 0 Regions Visited (2) 400 Robots Destroyed (34) 170 Value Destroyed (613) 613 Prototype IDs (0) 0 Alien Tech Used (0) 0 Bonus (0) 0 TOTAL SCORE: 1183 Bonus ------- None Cogmind --------- Core Integrity 0/250 Matter 173/300 Energy 60/100 System Corruption 1% Temperature Cool (0) Movement Treading (240) Ox1 Location -10/Subcaves Parts ------- > --- POWER (1) -------- (None) > --- PROPULSION (2) --- Light Treads > --- UTILITY (2) ------ Large Storage Unit > --- WEAPON (2) ------- Particle Cannon Particle Cannon > --- INVENTORY (15) --- Ion Engine Disposable Heat Sink Disposable Heat Sink High-capacity Storage Unit Huge Storage Unit Beam Rifle Beam Rifle Mini Grenade Launcher Mining Laser Peak State ------------ > --- POWER ------------ Light Nuclear Core > --- PROPULSION ------- Light Treads Light Treads > --- UTILITY ---------- Disposable Heat Sink High-capacity Storage Unit > --- WEAPON ----------- Particle Cannon Particle Cannon > --- INVENTORY -------- Ion Engine Light Treads Disposable Heat Sink Medium Storage Unit Huge Storage Unit Seismic Detector Seismic Detector Beam Rifle Beam Rifle Beam Rifle Beam Rifle Particle Cannon Particle Cannon Subdweller Machine Gun Subdweller Machine Gun Mini Grenade Launcher Mini Grenade Launcher Dirty Datajack Mining Laser [Rating: 15] Favorites ----------- Power Ion Engine Engine Ion Engine Power Core Light Nuclear Core Propulsion Light Treads Treads Light Treads Utility High-capacity Storage Unit Device Seismic Detector Storage High-capacity Storage Unit Weapon Particle Cannon Energy Gun Small Laser Energy Cannon Particle Cannon Ballistic Gun Subdweller Machine Gun Launcher Mini Grenade Launcher Build | -11 -10 -10 ------- Run | Yrd Mat Sub Slots Evolved . | . . . Power . | . . . Propulsion . | . . . Utility . | . . . Weapon . | . . . Parts Attached 23 | 8 11 4 Power 2 | 1 1 . Engine 1 | 1 . . Core 1 | . 1 . Reactor . | . . . Propulsion 3 | 2 1 . Treads 3 | 2 1 . Leg . | . . . Wheel . | . . . Hover . | . . . Flight . | . . . Utility 7 | 2 4 1 Device 3 | 1 2 . Storage 4 | 1 2 1 Processor . | . . . Hackware . | . . . Protection . | . . . Artifact . | . . . Weapon 11 | 3 5 3 Energy Gun 2 | 2 . . Energy Cannon 4 | . 2 2 Ballistic Gun 3 | 1 2 . Ballistic Cannon . | . . . Launcher 2 | . 1 1 Special Weapon . | . . . Impact Weapon . | . . . Slashing Weapon . | . . . Piercing Weapon . | . . . Special Melee Weapon . | . . . Unidentified Prototypes . | . . . Parts Lost 6 | . . 6 Power 1 | . . 1 Propulsion 2 | . . 2 Utility 1 | . . 1 Weapon 2 | . . 2 Highest Loss Streak 6 | . . 6 To Critical Strikes . | . . . Average Backups 14 | 2 15 12 Power . | . 1 1 Propulsion . | . . . Utility 4 | . 5 4 Weapon 7 | 1 8 6 Tool/Special . | . . . Unused Backups 16 | . 5 11 Power 1 | . . 1 Propulsion . | . . . Utility 3 | . . 3 Weapon 11 | . 5 6 Tool/Special 1 | . . 1 Average Slot Usage (%) 99 | . 99 98 Engine 8 | . 10 . Core 4 | . 3 13 Treads 27 | . 27 28 Device 13 | . 13 13 Storage 14 | . 14 14 Energy Cannon 22 | . 27 . Ballistic Gun 4 | . . 27 Peak Build Rating 15 | 7 15 15 Average Rating 11 | 5 12 11 On Entrance 7 | . 7 15 Avg Prop Armor Cover (%) . | . . . Naked Turns . | . . . Heaviest Build 54 | 13 54 34 Greatest Support 40 | 40 40 40 Greatest Overweight (x) 6 | . 6 . Average Overweight (x) . | . . . Largest Inventory Capacity 20 | 8 20 20 Average Capacity 16 | 7 17 15 Most Carried 20 | 4 20 17 Average Carried 14 | 2 15 11 Final Capacity 20 | 8 20 15 Final Carried 17 | 4 17 9 Class Distribution -------------------- 85% | Mutant 14% | Scavenger-Mutant Dominant Class ---------------- Mutant | -10/Materials Scavenger-Mutant | -10/Subcaves Resources | -11 -10 -10 ----------- Run | Yrd Mat Sub Matter Collected 558 | 303 246 9 Remotely . | . . . Salvage Created 1096 | 188 839 69 Parts 76 | 10 60 6 Haulers Intercepted 2 | . 2 . Recyclers Shooed . | . . . Parts Field Recycled . | . . . Retrieved Matter . | . . . Parts Self-Destructed 5 | . . 5 Prevented . | . . . Parts Restored . | . . . Kills | -11 -10 -10 ------- Run | Yrd Mat Sub Combat Hostiles Destroyed 17 | . 14 3 Cannons 11 | . 11 . AOE 6 | . 3 3 Classes Destroyed 9 | 3 6 . Worker 3 | 1 2 . Builder 1 | . 1 . Tunneler 5 | 4 1 . Hauler 2 | . 2 . Recycler 4 | 1 3 . Watcher 2 | . 2 . Swarmer 6 | . 6 . Grunt 6 | . 6 . Subdweller 5 | . 2 3 Best Kill Streak 6 | 2 6 3 Combat Bots Only 3 | . 3 3 Max Kills in Single Turn 1 | 1 1 1 Gunslinging . | . . . Exploded 1 | . 1 1 Melee . | . . . Uniques/NPCs Destroyed . | . . . Combat | -11 -10 -10 -------- Run | Yrd Mat Sub Hostile Shots Fired 82 | . 51 31 Missed 13 | . 10 3 Hits 69 | . 41 28 Projectile 69 | . 41 28 Damage Taken 1289 | . 533 756 Core 255 | . 121 134 Absorbed by Shields . | . . . Regen/Repaired (Parts) 126 | . 126 . Core Remaining (%) 100 | 100 . . Volleys Fired 76 | 17 51 8 Largest 2 | 2 2 2 Hottest 136 | 60 136 60 Shots Fired 143 | 32 99 12 Gun 40 | 32 . 8 Cannon 96 | . 96 . Launcher 7 | . 3 4 Special . | . . . Kinetic 25 | 17 . 8 Thermal 111 | 15 96 . Explosive 7 | . 3 4 Electromagnetic . | . . . Robot Hit Streak 18 | 8 18 12 Robot Miss Streak 4 | 2 4 . Penetration Max . | . . . Secondary Targets . | . . . Shots Hit Robots 87 | 19 57 11 Core Hits 42 | 8 28 6 Critical Kills . | . . . Critical Parts Destroyed 1 | 1 . . Critical Strikes 1 | 1 . . Destroy 1 | 1 . . Melee Attacks . | . . . Impact . | . . . Slashing . | . . . Piercing . | . . . Sneak Attacks . | . . . Combat Hostiles . | . . . Follow-up Attacks . | . . . Damage Inflicted 2254 | 185 1380 689 Guns 314 | 184 . 130 Cannons 1167 | . 1167 . Explosions 735 | . 176 559 Melee . | . . . Ramming 38 | 1 37 . Kinetic 206 | 76 . 130 Thermal 1275 | 108 1167 . Explosive 735 | . 176 559 Electromagnetic . | . . . Impact . | . . . Slashing . | . . . Piercing . | . . . Highest Corruption 1 | . 1 1 Average Corruption 1 | . 1 1 Corruption Purged . | . . . Corruption Blocked . | . . . Effects 7 | . 3 4 Message Errors 1 | . . 1 Matter Fused 2 | . 1 1 Heat Flow Errors 1 | . . 1 Data Loss (minor) 2 | . 1 1 Data Loss (major) 1 | . 1 . Overload Shots . | . . . Overflow Damage 39 | . 17 22 Projectiles 17 | . 17 . Explosions 22 | . . 22 Melee . | . . . Knockbacks . | . . . Impact . | . . . Kinetic . | . . . Secondary . | . . . Self-Inflicted Damage 159 | . 3 156 Shots 5 | . 1 4 Rammed 8 | 1 7 . Targets Rammed 9 | 1 8 . Kicked . | . . . Crushed 1 | . 1 . Highest Temperature 300 | 40 300 251 Average Temperature 96 | 23 107 141 Received Heat Transfer 168 | . 126 42 Siege Activations . | . . . Martial Activations . | . . . Shielding Activations . | . . . Robots Disrupted . | . . . Combat Hostiles . | . . . Robots Corrupted . | . . . Combat Hostiles . | . . . Parts Fried . | . . . Impact Corruptions . | . . . Robots Melted . | . . . Combat Hostiles . | . . . Parts Melted 4 | . 4 . Heat Transferred 2359 | 250 2109 . Parts Sabotaged . | . . . Parts Stolen . | . . . Parts Stripped . | . . . Power Chain Reactions . | . . . Alert | -11 -10 -10 ------- Run | Yrd Mat Sub Maximum Alert Level . | . . . Low Security (%) 100 | 100 100 . Level 1 . | . . . Level 2 . | . . . Level 3 . | . . . Level 4 . | . . . Level 5 . | . . . High Security . | . . . Max Security . | . . . Peak Influence 101 | 10 101 . Initial . | . . . Average 27 | 1 30 . Influence Increases 487 | 30 457 . Destroy 0b10 Robot/C 240 | . 240 . Destroy 0b10 Robot/NC 85 | 30 55 . Destroy Leader 58 | . 58 . Successful Hack 26 | . 26 . Select Force Hacks 30 | . 30 . Disable Machine 30 | . 30 . Destroy Structure 18 | . 18 . Influence Decreases 487 | 30 456 1 Entered New Map 1 | . . 1 Time Decay 486 | 30 456 . Squads Dispatched 3 | . 3 . Investigation 2 | . 2 . Extermination . | . . . Reinforcement 1 | . 1 . Assault . | . . . Garrison . | . . . Intercept . | . . . Searches Triggered . | . . . Construction Impeded . | . . . Haulers Reinforced . | . . . Active Scanning Responses . | . . . Cargo Convoy Interrupts . | . . . Stealth | -11 -10 -10 --------- Run | Yrd Mat Sub Distress Signals 1 | . 1 . Communications Jammed . | . . . Distress Signals . | . . . Times Spotted 25 | . 20 5 Peak Tracking Total 3 | . 3 3 Tactical Retreats . | . . . Traps | -11 -10 -10 ------- Run | Yrd Mat Sub Traps Triggered 5 | . 5 . Indirectly . | . . . Trap Hack Attempts . | . . . Triggered . | . . . Disarmed . | . . . Reprogrammed . | . . . Reused . | . . . Traps Extracted . | . . . Installed . | . . . Triggered . | . . . Machines | -11 -10 -10 ---------- Run | Yrd Mat Sub Machines Disabled 2 | . 2 . Max in Single Turn 1 | . 1 . Machines Repaired . | . . . Machines Dismantled . | . . . Machines Sabotaged . | . . . Overloaded Fab Kills . | . . . Hacking | -11 -10 -10 --------- Run | Yrd Mat Sub Machines Accessed 7 | . 7 . Terminals 5 | . 5 . Fabricators . | . . . Repair Stations 1 | . 1 . Recycling Units 1 | . 1 . Scanalyzers . | . . . Garrison Access . | . . . Total Hacks 22 | . 22 . Successful 14 | . 14 . Failed 7 | . 7 . Catastrophic 1 | . 1 . Database Lockouts 1 | . 1 . Manual 16 | . 16 . Terminals 15 | . 15 . Fabricators . | . . . Repair Stations 5 | . 5 . Recycling Units 2 | . 2 . Scanalyzers . | . . . Garrison Access . | . . . Terminal Hacks 4 | . 4 . Part Schematic 1 | . 1 . Robot Analysis 1 | . 1 . Locate Traps 2 | . 2 . Fabricator Hacks . | . . . Repair Station Hacks 3 | . 3 . Scan Component 2 | . 2 . Repair 1 | . 1 . Recycling Unit Hacks 1 | . 1 . Retrieve Components 1 | . 1 . Scanalyzer . | . . . Garrison Access Hacks . | . . . Unauthorized Hacks 6 | . 6 . Terminals 5 | . 5 . Botnet 3 | . 3 . Skim 2 | . 2 . Fabricators . | . . . Repair Stations . | . . . Recycling Units 1 | . 1 . Tunnel 1 | . 1 . Scanalyzers . | . . . Garrison Access . | . . . Data Cores Recovered . | . . . Used . | . . . Hacking Detections 5 | . 5 . Full Trace Events 1 | . 1 . Feedback Events . | . . . Feedback Blocked . | . . . Robot Schematics Acquired . | . . . Robots Built . | . . . Authchips . | . . . Time . | . . . Total Robot Build Rating . | . . . Part Schematics Acquired 1 | . 1 . Parts Built . | . . . Authchips . | . . . Time . | . . . Total Part Build Rating . | . . . Part Studies Acquired . | . . . Parts Repaired 1 | . 1 . Time 36 | . 36 . Parts Recycled . | . . . Recycled Matter . | . . . Retrieved Matter . | . . . Retrieved Components 9 | . 9 . Parts Scanalyzed . | . . . Part Schematics Acquired . | . . . Parts Damaged . | . . . Bothacking | -11 -10 -10 ------------ Run | Yrd Mat Sub Used RIF Installer . | . . . Robots Hacked . | . . . Non-combat . | . . . Combat . | . . . Robot Hacks Applied . | . . . Relay Couplers Released . | . . . Fabnet Peak Effective % . | . . . Robots Rewired . | . . . Allies Hacked . | . . . Hacks Repelled . | . . . Allies | -11 -10 -10 -------- Run | Yrd Mat Sub Total Allies . | . . . Largest Group . | . . . Highest-Rated Group . | . . . Highest-Rated Ally . | . . . Total Orders . | . . . Ally Attacks . | . . . Total Damage . | . . . Kills . | . . . Allies Corrupted . | . . . Allies Melted . | . . . Intel | -11 -10 -10 ------- Run | Yrd Mat Sub Active Infowar (turns) 1183 | 67 795 321 Seismic 1183 | 67 795 321 Robot Analysis Total 1 | . 1 . Derelict Logs Recovered 1 | . . 1 Drone Launches . | . . . Drone Recoveries . | . . . Exploration | -11 -10 -10 ------------- Run | Yrd Mat Sub Turns Passed 2336 | 186 1805 345 Spaces Moved 979 | 79 710 190 Core 5 | 4 1 . Treads 974 | 75 709 190 Legs . | . . . Wheels . | . . . Hover . | . . . Flight . | . . . Fastest Speed 50 | 50 160 160 Average Speed 201 | 154 217 160 Slowest Speed 350 | 160 350 160 Overloaded Moves . | . . . Propulsion Burnouts . | . . . Robots Hopped . | . . . Potential Cave-ins . | . . . Cave-ins Triggered . | . . . Exploration Rate (%) 41 | 6 98 19 Regions Visited 2 Branch Regions 1 Pre-discovered Areas 1 | . 1 . Known Exits Taken . | . . . Unknown Exits Taken 2 | 1 1 . Scrap Searched . | . . . Spaces Dug 10 | . 10 . Terrain Destroyed 40 | . 15 25 Melee . | . . . Projectile . | . . . AOE 40 | . 15 25 Terrain Rammed . | . . . Walls Destroyed . | . . . Machines Disabled . | . . . Actions | -11 -10 -10 --------- Run | Yrd Mat Sub Total 1195 | 109 867 219 Wait 42 | . 34 8 Move 977 | 78 709 190 Hop . | . . . Pick Up 31 | 4 27 . Fast Attach 14 | 7 7 . Attach 9 | . 6 3 Detach . | . . . Swap 17 | 2 10 5 Drop 20 | . 15 5 Fire 76 | 17 51 8 Melee . | . . . Ram . | . . . Kick . | . . . Crush 9 | 1 8 . Escape Stasis . | . . . Rewire . | . . . Trap . | . . . Miscellaneous . | . . . Route ------- -11/Scrapyard -10/Materials (discovered 5 exits: [*Mat x3] / [*Min] / [*Sub]) -10/Subcaves History --------- Turn | Location | Event 10 | -11/Scrapyard | Discovered new exit (range 15) 187 | -11/Scrapyard | Entered Materials 300 | -10/Materials | Build established: Mutant 827 | -10/Materials | Discovered new exit (range 8) 887 | -10/Materials | Derelicts attacked the area 1150 | -10/Materials | Discovered new exit (range 8) 1225 | -10/Materials | Discovered new exit (range 14) 1367 | -10/Materials | Repaired Broken Lgt. Treads 1592 | -10/Materials | Central database locked down 1649 | -10/Materials | Discovered new exit (range 10) 1744 | -10/Materials | Discovered new exit (range 15) 1992 | -10/Materials | Entered Subcaves 2286 | -10/Subcaves | Build established: Scavenger-Mutant 2309 | -10/Subcaves | Visited 4L-MR0's lab 2321 | -10/Subcaves | Core integrity fell below 50% 2329 | -10/Subcaves | Ambushed by Subdweller buried in earth 2331 | -10/Subcaves | Core integrity fell below 20% 2331 | -10/Subcaves | Ambushed by Subdweller buried in earth 2337 | -10/Subcaves | Destroyed by H5-R4E(R) with Subdweller Machine Gun Last Messages --------------- 02221_ System corrupted: Heat flow error (+289). 02263_ Acquired 9 matter. 02276_ Acquired derelict log, extracted data. Data stored: Mines entrances (x2). 02312_ System corrupted: Matter fused (-10). 02320_ Seismic Detector destroyed. 02321_ Lgt. Treads destroyed. 02323_ Lgt. Nuclear Core destroyed. 02326_ Sub. Machine Gun destroyed. 02327_ 15-J05(R) destroyed. 02329_ Subatomizers dissect the Sub. Power Source. 02329_ Sub. Machine Gun destroyed. 02329_ Destroyed Sub. Machine Gun. 02330_ 9O-3Q4(R): "FREEEEDUMB!" 02331_ C7-MAP(R) destroyed. 02332_ H5-R4E(R): "GOODGOOD!" 02333_ 9O-3Q4(R) destroyed. 02333_ Destroyed Scrap Shield. 02335_ Lgt. Treads destroyed. Map ----- +----------------------------------------------------+ | ?????????????????????????????????? | | ?????????????????????????????????? | | ?????????????????????????????????? | | ?????????????????????????????????? | | ????????????????? ??????????????? | | ????????????????# #???????##?????? | | ???????????????? ##??????# ?????? | | ???????????????? ######## ##???? | | ???????????????? ## ## #???# | | ???????????????? ##?## | | ???????????????? ### | | ???????????????? ## | | ??????????????## | | ??????????????# | | ?????????????## ## | | ?????????????# ??# | | ?????????#####" ????# ## | | ??#??????# #< #??##?????# | | ??# ?????# #? #???### | | ??#" ????# # #???## # | | ???" ?### #" # #?#### #### | | ???## ## ## ### ##?? | | ?###< # # ## ### | | ?#<< ## ### | | ?# =R ## ## | | ?#< ! @ ### ## | | ??#< &R% ## # | | ??## * #### #### | | ???# #??# ## ##??? | | ???# # ##??# # ##???? | | ???######?##???# #### ##????? ## | | ???????????????# #??####???????#? | | ???????????????# # #?????????????? | | ???????????????#####?????????????? | | ?????????????????????????????????? | | ?????????????????????????????????? | | ?????????????????????????????????? | | ?????????????????????????????????? | | ?????????????????????????????????? | | ?????????????????????????????????? | | ?????????????????????????????????? | | ?????????????????????????????????? | | ?????????????????????????????????? | | ?????????????????????????????????? | | ?????????????????????????????????? | | ?????????????????????????????????? | | ?????????????????????????????????? | | ?????????????????????????????????? | | ?????????????????????????????????? | | ?????????????????????????????????? | +----------------------------------------------------+ Best States ------------- Heat Dissipation 25 Coolant Potential 50 Energy Generation 14 Energy Capacity 250 Matter Stores 300 Matter Capacity 300 Sight Range 16 Terrain Scan Density 10 Evasion (%) 40 Recoil Reduction 2 Item Schematics ----------------- Hcp. Storage Unit | -10/Materials | Hacked Robot Schematics ------------------ None Fabricated ------------ Nothing Repaired ---------- Lgt. Treads | 10% | -10/Materials | Broken Studied --------- None Alien Tech Used ----------------- None Achievements -------------- None Challenges ------------ None Game ------ Seed ThiefLinkedCrosscalibrator Manual? 0 Play Time 00:16:03 Cumulative 608.3 hours Start 2026.03.02 @ 17:56:20 End 2026.03.02 @ 18:17:31 Sessions 1 Manual Loads 0 Difficulty Rogue Special Mode None Game No. 345 Rogue 345 Adventurer 0 Explorer 0 Win Type - Total 22 Types 12/0/6/0/0/0/1/2/1/0 Lore% 90 Gallery% 83 Achievement% 72 Wizard Run 0 Options --------- Layout 1 ASCII 0 Keyboard 0 Movement Numpad Keybinds 0 Fullscreen 2 Font 24/Smallcaps Map View 50x40 Zoom Use 0% Tactical HUD 1 Map Filters NONE Filters NONE Steam 1 RUN: ffa0a7c1-8b26-4dc6-a5ba-00f0a9ad6a5b